Workbook

Sheet الرئيسية
Z4: يناير | AA4: 1
Z5: فبراير | AA5: 2
Z6: مارس | AA6: 3
Z7: ابريل | AA7: 4
Z8: مايو | AA8: 5
Z9: يونيو | AA9: 6
Z10: يوليو | AA10: 7
Z11: اغسطس | AA11: 8
Z12: سبتمبر | AA12: 9
Z13: اكتوبر | AA13: 10
Z14: نوفمبر | AA14: 11
Z15: ديسمبر | AA15: 12

Sheet قائمة الموظفين
A1: الكود | B1: الاسم | C1: الوظيفه | D1: الاساسى | E1: التامين | U1: رصيد الاجازات
E2: الثابت | F2: المتغير | G2: اجر اليوم | H2: اجر الساعه | I2: اضافى 1 | J2: اضافى2 | K2: عطلات | L2: الحافز | M2: بدل اغتراب | N2: بدل مواصلات | O2: بدل وجبه | P2: بدل غلاء معيشه | Q2: بدل موبايل | R2: بدل ملبس | S2: بدل طبيعة عمل | T2: قرض | U2: اعتيادى 21 | V2: عارضه 6 | W2: ت اجتماعى | X2: ت طبى خاص
A3: 100001 | B3: احمد امام | C3: مدير ادارى | D3: 3000 | E3: 750 | F3: 750 | G3: =SUM(D3+F3+E3)/30 -> 150 | H3: =G3/8 -> 18.75 | I3: =H3*1.5 -> 28.125 | J3: =H3*2 -> 37.5 | K3: =H3*2 -> 37.5 | L3: 1000 | M3: 100 | N3: 600 | O3: 250 | P3: 150 | Q3: 100 | R3: 50 | S3: 50 | T3: =-12000-Input!AC37 -> -12500 | U3: =21-IF(A3=Input!$A$6,Input!P37,0) -> 21 | V3: 6 | W3: =-140 -> -140 | X3: =-100 -> -100
A4: 100002 | B4: احمد السيد | C4: امين مخزن | D4: 2000 | E4: 500 | F4: 500 | G4: =SUM(D4+F4+E4)/30 -> 100 | H4: =G4/8 -> 12.5 | I4: =H4*1.5 -> 18.75 | J4: =H4*2 -> 25 | K4: =H4*2 -> 25 | L4: 800 | M4: 100 | N4: 600 | O4: 300 | P4: 150 | S4: 50 | T4: -10000 | U4: =21-IF(A4=Input!$A$6,Input!P37,0) -> 21 | V4: 6 | W4: =-140 -> -140 | X4: =-100 -> -100
A5: 100003 | B5: يسرى موافى | C5: فنى | D5: 1500 | E5: 500 | F5: 500 | G5: 83.33333333 | H5: 10.41666667 | I5: 15.625 | J5: 20.83333333 | K5: 20.83333333 | L5: 750 | N5: 650 | O5: 350 | Q5: 50 | S5: 100 | T5: -9000 | U5: =21-IF(A5=Input!$A$6,Input!P37,0) -> 21 | V5: 6 | W5: -140 | X5: -100
A6: 100004 | B6: صالح محمد | C6: عامل | D6: 1800 | G6: 60 | H6: 7.5 | I6: 11.25 | J6: 15 | K6: 15 | L6: 1000 | N6: 500 | O6: 300 | P6: 200 | S6: 500 | T6: -8000 | U6: =21-IF(A6=Input!$A$6,Input!P37,0) -> 21 | V6: 6 | W6: -140 | X6: -100
A7: 100005 | B7: مراد الشافعى | C7: عامل | D7: 1750 | E7: 250 | F7: 250 | G7: 75 | H7: 9.375 | I7: 14.0625 | J7: 18.75 | K7: 18.75 | L7: 500 | M7: 100 | N7: 200 | O7: 100 | Q7: 50 | S7: 100 | T7: -7000 | V7: 6 | W7: -140 | X7: -100
A8: 100006 | B8: محمد على | C8: مدير ادارى | D8: 1500 | E8: 150 | F8: 150 | G8: 60 | H8: 7.5 | I8: 11.25 | J8: 15 | K8: 15 | L8: 800 | N8: 750 | P8: 200 | R8: 100 | T8: -500 | V8: 6 | W8: -140 | X8: -100
A9: 100007 | B9: عبد الواحد السيد | C9: عامل | D9: 4000 | E9: 500 | F9: 500 | G9: 166.6666667 | H9: 20.83333333 | I9: 31.25 | J9: 41.66666667 | K9: 41.66666667 | M9: 100 | N9: 500 | P9: 150 | S9: 100 | T9: -1000 | V9: 6 | W9: -140 | X9: -100
A10: 100008 | B10: احمد فتحى | C10: مساعد فنى | D10: 3000 | E10: 400 | F10: 400 | G10: 126.6666667 | H10: 15.83333333 | I10: 23.75 | J10: 31.66666667 | K10: 31.66666667 | L10: 500 | M10: 200 | N10: 100 | O10: 100 | P10: 100 | Q10: 50 | R10: 50 | S10: 50 | T10: -1500 | V10: 6 | W10: -140 | X10: -100
A11: 100009 | B11: احمد منصور | C11: امين مخزن | G11: 0 | H11: 0 | I11: 0 | J11: 0 | K11: 0 | V11: 6
A12: 100010 | B12: محمد صلاح | C12: مساعد امين مخزن | G12: 0 | H12: 0 | I12: 0 | J12: 0 | K12: 0 | V12: 6
A13: 100011 | B13: احمد مصطفى | C13: مدير حسابات | G13: 0 | H13: 0 | I13: 0 | J13: 0 | K13: 0 | V13: 6
A14: 100012 | B14: احمد سعيد | C14: محاسب | G14: 0 | H14: 0 | I14: 0 | J14: 0 | K14: 0 | V14: 6
A15: 100013 | B15: محمد رمضان | C15: محاسب | G15: 0 | H15: 0 | I15: 0 | J15: 0 | K15: 0 | V15: 6
A16: 100014 | B16: محمد شعبان | C16: رئيس قسم | G16: 0 | H16: 0 | I16: 0 | J16: 0 | K16: 0 | V16: 6
A17: 100015 | B17: احمد كرم | C17: مساعد فنى | G17: 0 | H17: 0 | I17: 0 | J17: 0 | K17: 0 | V17: 6
A18: 100016 | B18: اسامه محمود | C18: مدير حسابات | G18: 0 | H18: 0 | I18: 0 | J18: 0 | K18: 0 | V18: 6
A19: 100017 | B19: محمد الداخلى | C19: مدير ادارى | G19: 0 | H19: 0 | I19: 0 | J19: 0 | K19: 0 | V19: 6
A20: 100018 | B20: محمد عبد العزيز | C20: مساعد امين مخزن | G20: 0 | H20: 0 | I20: 0 | J20: 0 | K20: 0 | V20: 6
A21: 100019 | B21: هانى محمد | C21: محاسب | G21: 0 | H21: 0 | I21: 0 | J21: 0 | K21: 0 | V21: 6
A22: 100020 | B22: محمد حقار | C22: سائق | G22: 0 | H22: 0 | I22: 0 | J22: 0 | K22: 0 | V22: 6

Sheet Input
A1: 2020 | C1: مدخلات شهر | J1: يناير
A3: الاسم | B3: =IFERROR(VLOOKUP(A6,'قائمة الموظفين'!A:C,2,0),"") -> احمد امام | C3: اجمالى المستحق | E3: =H4+M4+N4+O4+P4+Q4+X4+T4+U4+V4+W4+X4+Y4+Z4+AA4 -> 10503.33333 | F3: الصافى | G3: =E3+E4 -> 10740.83333 | L3: =IF(K37=0,0,IF(K37=1,0.25,IF(K37=2,0.75,IF(K37=3,1.75,K37-2+0.75)))) -> 0
A4: الوظيفه | B4: =IFERROR(VLOOKUP(A6,'قائمة الموظفين'!A1:C1048575,3,0),"") -> مدير ادارى | C4: اجمالى الاستقطاعات | E4: =K4+L4+R4+S4+AB4+AC6+AD37+AE37 -> 237.5 | H4: =IFERROR($H37*VLOOKUP($A6,'قائمة الموظفين'!$A$3:$V$500,8,0),"") -> 8981.25 | J4: =J37 -> 0 | K4: =IFERROR(IF(K37>2,-(K37-2)*VLOOKUP($A6,'قائمة الموظفين'!$A$3:$X$500,7,0),0),"") -> 0 | L4: =IFERROR($L37*VLOOKUP($A6,'قائمة الموظفين'!$A$3:$X$500,8,0),"") -> -262.5 | M4: =IFERROR($M37*VLOOKUP($A6,'قائمة الموظفين'!$A$3:$X$500,9,0),"") -> 168.75 | N4: =IFERROR($N37*VLOOKUP($A6,'قائمة الموظفين'!$A$3:$X$500,10,0),"") -> 0 | O4: =IFERROR($O37*VLOOKUP($A6,'قائمة الموظفين'!$A$3:$X$500,11,0),"") -> 0 | P4: =IFERROR($P37*VLOOKUP($A6,'قائمة الموظفين'!$A$3:$X$500,7,0),"") -> 0 | Q4: =IFERROR($Q37*VLOOKUP($A6,'قائمة الموظفين'!$A$3:$X$500,7,0),"") -> 0 | R4: =IFERROR(-$R37*VLOOKUP($A6,'قائمة الموظفين'!$A$3:$X$500,7,0),"") -> 0 | S4: =IFERROR(-$S37*2*VLOOKUP($A6,'قائمة الموظفين'!$A$3:$X$500,7,0),"") -> 0 | T4: =T37 -> 96.66666667 | U4: 580 | V4: 241.6666667 | W4: 145 | X4: 96.66666667 | Y4: 48.33333333 | Z4: =Z37 -> 48.33333333 | AA4: =IFERROR(AA37*VLOOKUP($A6,'قائمة الموظفين'!$A$3:$X$500,7,0),"") -> 0 | AB4: =IFERROR(-AB37*VLOOKUP($A6,'قائمة الموظفين'!$A$3:$X$500,7,0),"") -> 0 | AC4: =IFERROR(VLOOKUP($A6,'قائمة الموظفين'!$A$3:$X$500,20,0),"") -> -12500 | AD4: =IFERROR(VLOOKUP($A6,'قائمة الموظفين'!$A$3:$X$500,23,0),"") -> -140 | AE4: =IFERROR(VLOOKUP($A6,'قائمة الموظفين'!$A$3:$X$500,24,0),"") -> -100
A5: الكود | B5: اليوم | C5: التــــــــــــاريخ | D5: اذن تأخير | E5: الحضور | F5: الانصراف | G5: عدد الساعات | H5: الفعلى | I5: عدد الاضافى | J5: التأخير ساعات | K5: عدد التأخيرات | L5: الفاقد | M5: اضافى 1 | N5: اضافى2 | O5: عطلات | P5: اعتيادى 21 | Q5: عارضه 6 | R5: غياب باذن | S5: غياب بدون اذن | T5: بدل اغتراب | U5: بدل مواصلات | V5: بدل وجبه | W5: بدل غلاء معيشه | X5: بدل موبايل | Y5: بدل ملبس | Z5: بدل طبيعة عمل | AA5: مكافات | AB5: جزاء | AC5: قرض | AD5: ت اجتماعى | AE5: ت طبى خاص
A6: 100001 | B6: =C6 -> 2020-01-01 | C6: =IF(MONTH(DATE($A$1,VLOOKUP($J$1,الرئيسية!$Z$4:$AA$15,2,0),ROWS($A$1:A1)))>VLOOKUP($J$1,الرئيسية!$Z$4:$AA$15,2,0),"",DATE($A$1,VLOOKUP($J$1,الرئيسية!$Z$4:$AA$15,2,0),ROWS($A$1:A1))) -> 2020-01-01 | G6: =$F6-E6 -> 0 | H6: =IF($E6=9.25,G6+0.25,F6-E6) -> 0 | I6: =IF($F6>17,$F6-17,0) -> 0 | J6: =IF($E6>9.25,E6-9,0) -> 0 | K6: =IF(D6="اذن تاخير",0,IF($J6>0,1,0)) -> 0 | L6: =IF(F6>=17,0,IF(F6=0,0,F6-17)) -> 0 | M6: =IF($I6>3,3,I6) -> 0 | T6: =IF($G6>=1,VLOOKUP($A$6,'قائمة الموظفين'!$A$3:$V$500,13,0)/30,0) -> 0 | U6: =IF($G6>=1,VLOOKUP($A$6,'قائمة الموظفين'!$A$3:$V$500,14,0)/30,0) -> 0 | V6: =IF($G6>=1,VLOOKUP($A$6,'قائمة الموظفين'!$A$3:$V$500,15,0)/30,0) -> 0 | W6: =IF($G6>=1,VLOOKUP($A$6,'قائمة الموظفين'!$A$3:$V$500,16,0)/30,0) -> 0 | X6: =IF($G6>=1,VLOOKUP($A$6,'قائمة الموظفين'!$A$3:$V$500,17,0)/30,0) -> 0 | Y6: =IF($G6>=1,VLOOKUP($A$6,'قائمة الموظفين'!$A$3:$V$500,18,0)/30,0) -> 0 | Z6: =IF($G6>=1,VLOOKUP($A$6,'قائمة الموظفين'!$A$3:$V$500,19,0)/30,0) -> 0 | AC6: 500 | AD6: لا يخصم | AE6: لا يخصم
B7: =C7 -> 2020-01-02 | C7: =IF(MONTH(DATE($A$1,VLOOKUP($J$1,الرئيسية!$Z$4:$AA$15,2,0),ROWS($A$1:A2)))>VLOOKUP($J$1,الرئيسية!$Z$4:$AA$15,2,0),"",DATE($A$1,VLOOKUP($J$1,الرئيسية!$Z$4:$AA$15,2,0),ROWS($A$1:A2))) -> 2020-01-02 | G7: =$F7-E7 -> 0 | H7: =IF($E7=9.25,G7+0.25,F7-E7) -> 0 | I7: =IF($F7>17,$F7-17,0) -> 0 | J7: =IF($E7>9.25,E7-9,0) -> 0 | K7: =IF(D7="اذن تاخير",0,IF($J7>0,1,0)) -> 0 | L7: =IF(F7>=17,0,IF(F7=0,0,F7-17)) -> 0 | M7: =IF($I7>3,3,I7) -> 0 | T7: =IF($G7>=1,VLOOKUP($A$6,'قائمة الموظفين'!$A$3:$V$500,13,0)/30,0) -> 0 | U7: =IF($G7>=1,VLOOKUP($A$6,'قائمة الموظفين'!$A$3:$V$500,14,0)/30,0) -> 0 | V7: =IF($G7>=1,VLOOKUP($A$6,'قائمة الموظفين'!$A$3:$V$500,15,0)/30,0) -> 0 | W7: =IF($G7>=1,VLOOKUP($A$6,'قائمة الموظفين'!$A$3:$V$500,16,0)/30,0) -> 0 | X7: =IF($G7>=1,VLOOKUP($A$6,'قائمة الموظفين'!$A$3:$V$500,17,0)/30,0) -> 0 | Y7: =IF($G7>=1,VLOOKUP($A$6,'قائمة الموظفين'!$A$3:$V$500,18,0)/30,0) -> 0 | Z7: =IF($G7>=1,VLOOKUP($A$6,'قائمة الموظفين'!$A$3:$V$500,19,0)/30,0) -> 0
B8: 2020-01-03 | C8: =IF(MONTH(DATE($A$1,VLOOKUP($J$1,الرئيسية!$Z$4:$AA$15,2,0),ROWS($A$1:A3)))>VLOOKUP($J$1,الرئيسية!$Z$4:$AA$15,2,0),"",DATE($A$1,VLOOKUP($J$1,الرئيسية!$Z$4:$AA$15,2,0),ROWS($A$1:A3))) -> 2020-01-03 | F8: 16 | G8: 16 | H8: 16 | I8: 0 | J8: 0 | K8: 0 | L8: -1 | M8: 0 | T8: =IF($G8>=1,VLOOKUP($A$6,'قائمة الموظفين'!$A$3:$V$500,13,0)/30,0) -> 3.333333333 | U8: =IF($G8>=1,VLOOKUP($A$6,'قائمة الموظفين'!$A$3:$V$500,14,0)/30,0) -> 20 | V8: =IF($G8>=1,VLOOKUP($A$6,'قائمة الموظفين'!$A$3:$V$500,15,0)/30,0) -> 8.333333333 | W8: =IF($G8>=1,VLOOKUP($A$6,'قائمة الموظفين'!$A$3:$V$500,16,0)/30,0) -> 5 | X8: =IF($G8>=1,VLOOKUP($A$6,'قائمة الموظفين'!$A$3:$V$500,17,0)/30,0) -> 3.333333333 | Y8: =IF($G8>=1,VLOOKUP($A$6,'قائمة الموظفين'!$A$3:$V$500,18,0)/30,0) -> 1.666666667 | Z8: =IF($G8>=1,VLOOKUP($A$6,'قائمة الموظفين'!$A$3:$V$500,19,0)/30,0) -> 1.666666667
B9: 2020-01-04 | C9: =IF(MONTH(DATE($A$1,VLOOKUP($J$1,الرئيسية!$Z$4:$AA$15,2,0),ROWS($A$1:A4)))>VLOOKUP($J$1,الرئيسية!$Z$4:$AA$15,2,0),"",DATE($A$1,VLOOKUP($J$1,الرئيسية!$Z$4:$AA$15,2,0),ROWS($A$1:A4))) -> 2020-01-04 | F9: 16 | G9: 16 | H9: 16 | I9: 0 | J9: 0 | K9: 0 | L9: -1 | M9: 0 | T9: =IF($G9>=1,VLOOKUP($A$6,'قائمة الموظفين'!$A$3:$V$500,13,0)/30,0) -> 3.333333333 | U9: =IF($G9>=1,VLOOKUP($A$6,'قائمة الموظفين'!$A$3:$V$500,14,0)/30,0) -> 20 | V9: =IF($G9>=1,VLOOKUP($A$6,'قائمة الموظفين'!$A$3:$V$500,15,0)/30,0) -> 8.333333333 | W9: =IF($G9>=1,VLOOKUP($A$6,'قائمة الموظفين'!$A$3:$V$500,16,0)/30,0) -> 5 | X9: =IF($G9>=1,VLOOKUP($A$6,'قائمة الموظفين'!$A$3:$V$500,17,0)/30,0) -> 3.333333333 | Y9: =IF($G9>=1,VLOOKUP($A$6,'قائمة الموظفين'!$A$3:$V$500,18,0)/30,0) -> 1.666666667 | Z9: =IF($G9>=1,VLOOKUP($A$6,'قائمة الموظفين'!$A$3:$V$500,19,0)/30,0) -> 1.666666667
B10: 2020-01-05 | C10: =IF(MONTH(DATE($A$1,VLOOKUP($J$1,الرئيسية!$Z$4:$AA$15,2,0),ROWS($A$1:A5)))>VLOOKUP($J$1,الرئيسية!$Z$4:$AA$15,2,0),"",DATE($A$1,VLOOKUP($J$1,الرئيسية!$Z$4:$AA$15,2,0),ROWS($A$1:A5))) -> 2020-01-05 | F10: 17 | G10: 17 | H10: 17 | I10: 0 | J10: 0 | K10: 0 | L10: 0 | M10: 0 | T10: =IF($G10>=1,VLOOKUP($A$6,'قائمة الموظفين'!$A$3:$V$500,13,0)/30,0) -> 3.333333333 | U10: =IF($G10>=1,VLOOKUP($A$6,'قائمة الموظفين'!$A$3:$V$500,14,0)/30,0) -> 20 | V10: =IF($G10>=1,VLOOKUP($A$6,'قائمة الموظفين'!$A$3:$V$500,15,0)/30,0) -> 8.333333333 | W10: =IF($G10>=1,VLOOKUP($A$6,'قائمة الموظفين'!$A$3:$V$500,16,0)/30,0) -> 5 | X10: =IF($G10>=1,VLOOKUP($A$6,'قائمة الموظفين'!$A$3:$V$500,17,0)/30,0) -> 3.333333333 | Y10: =IF($G10>=1,VLOOKUP($A$6,'قائمة الموظفين'!$A$3:$V$500,18,0)/30,0) -> 1.666666667 | Z10: =IF($G10>=1,VLOOKUP($A$6,'قائمة الموظفين'!$A$3:$V$500,19,0)/30,0) -> 1.666666667
B11: 2020-01-06 | C11: =IF(MONTH(DATE($A$1,VLOOKUP($J$1,الرئيسية!$Z$4:$AA$15,2,0),ROWS($A$1:A6)))>VLOOKUP($J$1,الرئيسية!$Z$4:$AA$15,2,0),"",DATE($A$1,VLOOKUP($J$1,الرئيسية!$Z$4:$AA$15,2,0),ROWS($A$1:A6))) -> 2020-01-06 | F11: 16 | G11: 16 | H11: 16 | I11: 0 | J11: 0 | K11: 0 | L11: -1 | M11: 0 | T11: =IF($G11>=1,VLOOKUP($A$6,'قائمة الموظفين'!$A$3:$V$500,13,0)/30,0) -> 3.333333333 | U11: =IF($G11>=1,VLOOKUP($A$6,'قائمة الموظفين'!$A$3:$V$500,14,0)/30,0) -> 20 | V11: =IF($G11>=1,VLOOKUP($A$6,'قائمة الموظفين'!$A$3:$V$500,15,0)/30,0) -> 8.333333333 | W11: =IF($G11>=1,VLOOKUP($A$6,'قائمة الموظفين'!$A$3:$V$500,16,0)/30,0) -> 5 | X11: =IF($G11>=1,VLOOKUP($A$6,'قائمة الموظفين'!$A$3:$V$500,17,0)/30,0) -> 3.333333333 | Y11: =IF($G11>=1,VLOOKUP($A$6,'قائمة الموظفين'!$A$3:$V$500,18,0)/30,0) -> 1.666666667 | Z11: =IF($G11>=1,VLOOKUP($A$6,'قائمة الموظفين'!$A$3:$V$500,19,0)/30,0) -> 1.666666667
B12: 2020-01-07 | C12: =IF(MONTH(DATE($A$1,VLOOKUP($J$1,الرئيسية!$Z$4:$AA$15,2,0),ROWS($A$1:A7)))>VLOOKUP($J$1,الرئيسية!$Z$4:$AA$15,2,0),"",DATE($A$1,VLOOKUP($J$1,الرئيسية!$Z$4:$AA$15,2,0),ROWS($A$1:A7))) -> 2020-01-07 | F12: 16 | G12: 16 | H12: 16 | I12: 0 | J12: 0 | K12: 0 | L12: -1 | M12: 0 | T12: =IF($G12>=1,VLOOKUP($A$6,'قائمة الموظفين'!$A$3:$V$500,13,0)/30,0) -> 3.333333333 | U12: =IF($G12>=1,VLOOKUP($A$6,'قائمة الموظفين'!$A$3:$V$500,14,0)/30,0) -> 20 | V12: =IF($G12>=1,VLOOKUP($A$6,'قائمة الموظفين'!$A$3:$V$500,15,0)/30,0) -> 8.333333333 | W12: =IF($G12>=1,VLOOKUP($A$6,'قائمة الموظفين'!$A$3:$V$500,16,0)/30,0) -> 5 | X12: =IF($G12>=1,VLOOKUP($A$6,'قائمة الموظفين'!$A$3:$V$500,17,0)/30,0) -> 3.333333333 | Y12: =IF($G12>=1,VLOOKUP($A$6,'قائمة الموظفين'!$A$3:$V$500,18,0)/30,0) -> 1.666666667 | Z12: =IF($G12>=1,VLOOKUP($A$6,'قائمة الموظفين'!$A$3:$V$500,19,0)/30,0) -> 1.666666667
B13: 2020-01-08 | C13: =IF(MONTH(DATE($A$1,VLOOKUP($J$1,الرئيسية!$Z$4:$AA$15,2,0),ROWS($A$1:A8)))>VLOOKUP($J$1,الرئيسية!$Z$4:$AA$15,2,0),"",DATE($A$1,VLOOKUP($J$1,الرئيسية!$Z$4:$AA$15,2,0),ROWS($A$1:A8))) -> 2020-01-08 | F13: 15 | G13: 15 | H13: 15 | I13: 0 | J13: 0 | K13: 0 | L13: -2 | M13: 0 | T13: =IF($G13>=1,VLOOKUP($A$6,'قائمة الموظفين'!$A$3:$V$500,13,0)/30,0) -> 3.333333333 | U13: =IF($G13>=1,VLOOKUP($A$6,'قائمة الموظفين'!$A$3:$V$500,14,0)/30,0) -> 20 | V13: =IF($G13>=1,VLOOKUP($A$6,'قائمة الموظفين'!$A$3:$V$500,15,0)/30,0) -> 8.333333333 | W13: =IF($G13>=1,VLOOKUP($A$6,'قائمة الموظفين'!$A$3:$V$500,16,0)/30,0) -> 5 | X13: =IF($G13>=1,VLOOKUP($A$6,'قائمة الموظفين'!$A$3:$V$500,17,0)/30,0) -> 3.333333333 | Y13: =IF($G13>=1,VLOOKUP($A$6,'قائمة الموظفين'!$A$3:$V$500,18,0)/30,0) -> 1.666666667 | Z13: =IF($G13>=1,VLOOKUP($A$6,'قائمة الموظفين'!$A$3:$V$500,19,0)/30,0) -> 1.666666667
B14: 2020-01-09 | C14: =IF(MONTH(DATE($A$1,VLOOKUP($J$1,الرئيسية!$Z$4:$AA$15,2,0),ROWS($A$1:A9)))>VLOOKUP($J$1,الرئيسية!$Z$4:$AA$15,2,0),"",DATE($A$1,VLOOKUP($J$1,الرئيسية!$Z$4:$AA$15,2,0),ROWS($A$1:A9))) -> 2020-01-09 | F14: 17 | G14: 17 | H14: 17 | I14: 0 | J14: 0 | K14: 0 | L14: 0 | M14: 0 | T14: =IF($G14>=1,VLOOKUP($A$6,'قائمة الموظفين'!$A$3:$V$500,13,0)/30,0) -> 3.333333333 | U14: =IF($G14>=1,VLOOKUP($A$6,'قائمة الموظفين'!$A$3:$V$500,14,0)/30,0) -> 20 | V14: =IF($G14>=1,VLOOKUP($A$6,'قائمة الموظفين'!$A$3:$V$500,15,0)/30,0) -> 8.333333333 | W14: =IF($G14>=1,VLOOKUP($A$6,'قائمة الموظفين'!$A$3:$V$500,16,0)/30,0) -> 5 | X14: =IF($G14>=1,VLOOKUP($A$6,'قائمة الموظفين'!$A$3:$V$500,17,0)/30,0) -> 3.333333333 | Y14: =IF($G14>=1,VLOOKUP($A$6,'قائمة الموظفين'!$A$3:$V$500,18,0)/30,0) -> 1.666666667 | Z14: =IF($G14>=1,VLOOKUP($A$6,'قائمة الموظفين'!$A$3:$V$500,19,0)/30,0) -> 1.666666667
B15: 2020-01-10 | C15: =IF(MONTH(DATE($A$1,VLOOKUP($J$1,الرئيسية!$Z$4:$AA$15,2,0),ROWS($A$1:A10)))>VLOOKUP($J$1,الرئيسية!$Z$4:$AA$15,2,0),"",DATE($A$1,VLOOKUP($J$1,الرئيسية!$Z$4:$AA$15,2,0),ROWS($A$1:A10))) -> 2020-01-10 | F15: 16 | G15: 16 | H15: 16 | I15: 0 | J15: 0 | K15: 0 | L15: -1 | M15: 0 | T15: =IF($G15>=1,VLOOKUP($A$6,'قائمة الموظفين'!$A$3:$V$500,13,0)/30,0) -> 3.333333333 | U15: =IF($G15>=1,VLOOKUP($A$6,'قائمة الموظفين'!$A$3:$V$500,14,0)/30,0) -> 20 | V15: =IF($G15>=1,VLOOKUP($A$6,'قائمة الموظفين'!$A$3:$V$500,15,0)/30,0) -> 8.333333333 | W15: =IF($G15>=1,VLOOKUP($A$6,'قائمة الموظفين'!$A$3:$V$500,16,0)/30,0) -> 5 | X15: =IF($G15>=1,VLOOKUP($A$6,'قائمة الموظفين'!$A$3:$V$500,17,0)/30,0) -> 3.333333333 | Y15: =IF($G15>=1,VLOOKUP($A$6,'قائمة الموظفين'!$A$3:$V$500,18,0)/30,0) -> 1.666666667 | Z15: =IF($G15>=1,VLOOKUP($A$6,'قائمة الموظفين'!$A$3:$V$500,19,0)/30,0) -> 1.666666667
B16: 2020-01-11 | C16: =IF(MONTH(DATE($A$1,VLOOKUP($J$1,الرئيسية!$Z$4:$AA$15,2,0),ROWS($A$1:A11)))>VLOOKUP($J$1,الرئيسية!$Z$4:$AA$15,2,0),"",DATE($A$1,VLOOKUP($J$1,الرئيسية!$Z$4:$AA$15,2,0),ROWS($A$1:A11))) -> 2020-01-11 | F16: 17 | G16: 17 | H16: 17 | I16: 0 | J16: 0 | K16: 0 | L16: 0 | M16: 0 | T16: =IF($G16>=1,VLOOKUP($A$6,'قائمة الموظفين'!$A$3:$V$500,13,0)/30,0) -> 3.333333333 | U16: =IF($G16>=1,VLOOKUP($A$6,'قائمة الموظفين'!$A$3:$V$500,14,0)/30,0) -> 20 | V16: =IF($G16>=1,VLOOKUP($A$6,'قائمة الموظفين'!$A$3:$V$500,15,0)/30,0) -> 8.333333333 | W16: =IF($G16>=1,VLOOKUP($A$6,'قائمة الموظفين'!$A$3:$V$500,16,0)/30,0) -> 5 | X16: =IF($G16>=1,VLOOKUP($A$6,'قائمة الموظفين'!$A$3:$V$500,17,0)/30,0) -> 3.333333333 | Y16: =IF($G16>=1,VLOOKUP($A$6,'قائمة الموظفين'!$A$3:$V$500,18,0)/30,0) -> 1.666666667 | Z16: =IF($G16>=1,VLOOKUP($A$6,'قائمة الموظفين'!$A$3:$V$500,19,0)/30,0) -> 1.666666667
B17: 2020-01-12 | C17: =IF(MONTH(DATE($A$1,VLOOKUP($J$1,الرئيسية!$Z$4:$AA$15,2,0),ROWS($A$1:A12)))>VLOOKUP($J$1,الرئيسية!$Z$4:$AA$15,2,0),"",DATE($A$1,VLOOKUP($J$1,الرئيسية!$Z$4:$AA$15,2,0),ROWS($A$1:A12))) -> 2020-01-12 | F17: 18 | G17: 18 | H17: 18 | I17: 1 | J17: 0 | K17: 0 | L17: 0 | M17: 1 | T17: =IF($G17>=1,VLOOKUP($A$6,'قائمة الموظفين'!$A$3:$V$500,13,0)/30,0) -> 3.333333333 | U17: =IF($G17>=1,VLOOKUP($A$6,'قائمة الموظفين'!$A$3:$V$500,14,0)/30,0) -> 20 | V17: =IF($G17>=1,VLOOKUP($A$6,'قائمة الموظفين'!$A$3:$V$500,15,0)/30,0) -> 8.333333333 | W17: =IF($G17>=1,VLOOKUP($A$6,'قائمة الموظفين'!$A$3:$V$500,16,0)/30,0) -> 5 | X17: =IF($G17>=1,VLOOKUP($A$6,'قائمة الموظفين'!$A$3:$V$500,17,0)/30,0) -> 3.333333333 | Y17: =IF($G17>=1,VLOOKUP($A$6,'قائمة الموظفين'!$A$3:$V$500,18,0)/30,0) -> 1.666666667 | Z17: =IF($G17>=1,VLOOKUP($A$6,'قائمة الموظفين'!$A$3:$V$500,19,0)/30,0) -> 1.666666667
B18: 2020-01-13 | C18: =IF(MONTH(DATE($A$1,VLOOKUP($J$1,الرئيسية!$Z$4:$AA$15,2,0),ROWS($A$1:A13)))>VLOOKUP($J$1,الرئيسية!$Z$4:$AA$15,2,0),"",DATE($A$1,VLOOKUP($J$1,الرئيسية!$Z$4:$AA$15,2,0),ROWS($A$1:A13))) -> 2020-01-13 | F18: 18 | G18: 18 | H18: 18 | I18: 1 | J18: 0 | K18: 0 | L18: 0 | M18: 1 | T18: =IF($G18>=1,VLOOKUP($A$6,'قائمة الموظفين'!$A$3:$V$500,13,0)/30,0) -> 3.333333333 | U18: =IF($G18>=1,VLOOKUP($A$6,'قائمة الموظفين'!$A$3:$V$500,14,0)/30,0) -> 20 | V18: =IF($G18>=1,VLOOKUP($A$6,'قائمة الموظفين'!$A$3:$V$500,15,0)/30,0) -> 8.333333333 | W18: =IF($G18>=1,VLOOKUP($A$6,'قائمة الموظفين'!$A$3:$V$500,16,0)/30,0) -> 5 | X18: =IF($G18>=1,VLOOKUP($A$6,'قائمة الموظفين'!$A$3:$V$500,17,0)/30,0) -> 3.333333333 | Y18: =IF($G18>=1,VLOOKUP($A$6,'قائمة الموظفين'!$A$3:$V$500,18,0)/30,0) -> 1.666666667 | Z18: =IF($G18>=1,VLOOKUP($A$6,'قائمة الموظفين'!$A$3:$V$500,19,0)/30,0) -> 1.666666667
B19: 2020-01-14 | C19: =IF(MONTH(DATE($A$1,VLOOKUP($J$1,الرئيسية!$Z$4:$AA$15,2,0),ROWS($A$1:A14)))>VLOOKUP($J$1,الرئيسية!$Z$4:$AA$15,2,0),"",DATE($A$1,VLOOKUP($J$1,الرئيسية!$Z$4:$AA$15,2,0),ROWS($A$1:A14))) -> 2020-01-14 | F19: 17 | G19: 17 | H19: 17 | I19: 0 | J19: 0 | K19: 0 | L19: 0 | M19: 0 | T19: =IF($G19>=1,VLOOKUP($A$6,'قائمة الموظفين'!$A$3:$V$500,13,0)/30,0) -> 3.333333333 | U19: =IF($G19>=1,VLOOKUP($A$6,'قائمة الموظفين'!$A$3:$V$500,14,0)/30,0) -> 20 | V19: =IF($G19>=1,VLOOKUP($A$6,'قائمة الموظفين'!$A$3:$V$500,15,0)/30,0) -> 8.333333333 | W19: =IF($G19>=1,VLOOKUP($A$6,'قائمة الموظفين'!$A$3:$V$500,16,0)/30,0) -> 5 | X19: =IF($G19>=1,VLOOKUP($A$6,'قائمة الموظفين'!$A$3:$V$500,17,0)/30,0) -> 3.333333333 | Y19: =IF($G19>=1,VLOOKUP($A$6,'قائمة الموظفين'!$A$3:$V$500,18,0)/30,0) -> 1.666666667 | Z19: =IF($G19>=1,VLOOKUP($A$6,'قائمة الموظفين'!$A$3:$V$500,19,0)/30,0) -> 1.666666667
B20: 2020-01-15 | C20: =IF(MONTH(DATE($A$1,VLOOKUP($J$1,الرئيسية!$Z$4:$AA$15,2,0),ROWS($A$1:A15)))>VLOOKUP($J$1,الرئيسية!$Z$4:$AA$15,2,0),"",DATE($A$1,VLOOKUP($J$1,الرئيسية!$Z$4:$AA$15,2,0),ROWS($A$1:A15))) -> 2020-01-15 | F20: 17 | G20: 17 | H20: 17 | I20: 0 | J20: 0 | K20: 0 | L20: 0 | M20: 0 | T20: =IF($G20>=1,VLOOKUP($A$6,'قائمة الموظفين'!$A$3:$V$500,13,0)/30,0) -> 3.333333333 | U20: =IF($G20>=1,VLOOKUP($A$6,'قائمة الموظفين'!$A$3:$V$500,14,0)/30,0) -> 20 | V20: =IF($G20>=1,VLOOKUP($A$6,'قائمة الموظفين'!$A$3:$V$500,15,0)/30,0) -> 8.333333333 | W20: =IF($G20>=1,VLOOKUP($A$6,'قائمة الموظفين'!$A$3:$V$500,16,0)/30,0) -> 5 | X20: =IF($G20>=1,VLOOKUP($A$6,'قائمة الموظفين'!$A$3:$V$500,17,0)/30,0) -> 3.333333333 | Y20: =IF($G20>=1,VLOOKUP($A$6,'قائمة الموظفين'!$A$3:$V$500,18,0)/30,0) -> 1.666666667 | Z20: =IF($G20>=1,VLOOKUP($A$6,'قائمة الموظفين'!$A$3:$V$500,19,0)/30,0) -> 1.666666667
B21: 2020-01-16 | C21: =IF(MONTH(DATE($A$1,VLOOKUP($J$1,الرئيسية!$Z$4:$AA$15,2,0),ROWS($A$1:A16)))>VLOOKUP($J$1,الرئيسية!$Z$4:$AA$15,2,0),"",DATE($A$1,VLOOKUP($J$1,الرئيسية!$Z$4:$AA$15,2,0),ROWS($A$1:A16))) -> 2020-01-16 | F21: 17 | G21: 17 | H21: 17 | I21: 0 | J21: 0 | K21: 0 | L21: 0 | M21: 0 | T21: =IF($G21>=1,VLOOKUP($A$6,'قائمة الموظفين'!$A$3:$V$500,13,0)/30,0) -> 3.333333333 | U21: =IF($G21>=1,VLOOKUP($A$6,'قائمة الموظفين'!$A$3:$V$500,14,0)/30,0) -> 20 | V21: =IF($G21>=1,VLOOKUP($A$6,'قائمة الموظفين'!$A$3:$V$500,15,0)/30,0) -> 8.333333333 | W21: =IF($G21>=1,VLOOKUP($A$6,'قائمة الموظفين'!$A$3:$V$500,16,0)/30,0) -> 5 | X21: =IF($G21>=1,VLOOKUP($A$6,'قائمة الموظفين'!$A$3:$V$500,17,0)/30,0) -> 3.333333333 | Y21: =IF($G21>=1,VLOOKUP($A$6,'قائمة الموظفين'!$A$3:$V$500,18,0)/30,0) -> 1.666666667 | Z21: =IF($G21>=1,VLOOKUP($A$6,'قائمة الموظفين'!$A$3:$V$500,19,0)/30,0) -> 1.666666667
B22: 2020-01-17 | C22: =IF(MONTH(DATE($A$1,VLOOKUP($J$1,الرئيسية!$Z$4:$AA$15,2,0),ROWS($A$1:A17)))>VLOOKUP($J$1,الرئيسية!$Z$4:$AA$15,2,0),"",DATE($A$1,VLOOKUP($J$1,الرئيسية!$Z$4:$AA$15,2,0),ROWS($A$1:A17))) -> 2020-01-17 | F22: 17 | G22: 17 | H22: 17 | I22: 0 | J22: 0 | K22: 0 | L22: 0 | M22: 0 | T22: =IF($G22>=1,VLOOKUP($A$6,'قائمة الموظفين'!$A$3:$V$500,13,0)/30,0) -> 3.333333333 | U22: =IF($G22>=1,VLOOKUP($A$6,'قائمة الموظفين'!$A$3:$V$500,14,0)/30,0) -> 20 | V22: =IF($G22>=1,VLOOKUP($A$6,'قائمة الموظفين'!$A$3:$V$500,15,0)/30,0) -> 8.333333333 | W22: =IF($G22>=1,VLOOKUP($A$6,'قائمة الموظفين'!$A$3:$V$500,16,0)/30,0) -> 5 | X22: =IF($G22>=1,VLOOKUP($A$6,'قائمة الموظفين'!$A$3:$V$500,17,0)/30,0) -> 3.333333333 | Y22: =IF($G22>=1,VLOOKUP($A$6,'قائمة الموظفين'!$A$3:$V$500,18,0)/30,0) -> 1.666666667 | Z22: =IF($G22>=1,VLOOKUP($A$6,'قائمة الموظفين'!$A$3:$V$500,19,0)/30,0) -> 1.666666667
B23: 2020-01-18 | C23: =IF(MONTH(DATE($A$1,VLOOKUP($J$1,الرئيسية!$Z$4:$AA$15,2,0),ROWS($A$1:A18)))>VLOOKUP($J$1,الرئيسية!$Z$4:$AA$15,2,0),"",DATE($A$1,VLOOKUP($J$1,الرئيسية!$Z$4:$AA$15,2,0),ROWS($A$1:A18))) -> 2020-01-18 | F23: 17 | G23: 17 | H23: 17 | I23: 0 | J23: 0 | K23: 0 | L23: 0 | M23: 0 | T23: =IF($G23>=1,VLOOKUP($A$6,'قائمة الموظفين'!$A$3:$V$500,13,0)/30,0) -> 3.333333333 | U23: =IF($G23>=1,VLOOKUP($A$6,'قائمة الموظفين'!$A$3:$V$500,14,0)/30,0) -> 20 | V23: =IF($G23>=1,VLOOKUP($A$6,'قائمة الموظفين'!$A$3:$V$500,15,0)/30,0) -> 8.333333333 | W23: =IF($G23>=1,VLOOKUP($A$6,'قائمة الموظفين'!$A$3:$V$500,16,0)/30,0) -> 5 | X23: =IF($G23>=1,VLOOKUP($A$6,'قائمة الموظفين'!$A$3:$V$500,17,0)/30,0) -> 3.333333333 | Y23: =IF($G23>=1,VLOOKUP($A$6,'قائمة الموظفين'!$A$3:$V$500,18,0)/30,0) -> 1.666666667 | Z23: =IF($G23>=1,VLOOKUP($A$6,'قائمة الموظفين'!$A$3:$V$500,19,0)/30,0) -> 1.666666667
B24: 2020-01-19 | C24: =IF(MONTH(DATE($A$1,VLOOKUP($J$1,الرئيسية!$Z$4:$AA$15,2,0),ROWS($A$1:A19)))>VLOOKUP($J$1,الرئيسية!$Z$4:$AA$15,2,0),"",DATE($A$1,VLOOKUP($J$1,الرئيسية!$Z$4:$AA$15,2,0),ROWS($A$1:A19))) -> 2020-01-19 | F24: 16 | G24: 16 | H24: 16 | I24: 0 | J24: 0 | K24: 0 | L24: -1 | M24: 0 | T24: =IF($G24>=1,VLOOKUP($A$6,'قائمة الموظفين'!$A$3:$V$500,13,0)/30,0) -> 3.333333333 | U24: =IF($G24>=1,VLOOKUP($A$6,'قائمة الموظفين'!$A$3:$V$500,14,0)/30,0) -> 20 | V24: =IF($G24>=1,VLOOKUP($A$6,'قائمة الموظفين'!$A$3:$V$500,15,0)/30,0) -> 8.333333333 | W24: =IF($G24>=1,VLOOKUP($A$6,'قائمة الموظفين'!$A$3:$V$500,16,0)/30,0) -> 5 | X24: =IF($G24>=1,VLOOKUP($A$6,'قائمة الموظفين'!$A$3:$V$500,17,0)/30,0) -> 3.333333333 | Y24: =IF($G24>=1,VLOOKUP($A$6,'قائمة الموظفين'!$A$3:$V$500,18,0)/30,0) -> 1.666666667 | Z24: =IF($G24>=1,VLOOKUP($A$6,'قائمة الموظفين'!$A$3:$V$500,19,0)/30,0) -> 1.666666667
B25: 2020-01-20 | C25: =IF(MONTH(DATE($A$1,VLOOKUP($J$1,الرئيسية!$Z$4:$AA$15,2,0),ROWS($A$1:A20)))>VLOOKUP($J$1,الرئيسية!$Z$4:$AA$15,2,0),"",DATE($A$1,VLOOKUP($J$1,الرئيسية!$Z$4:$AA$15,2,0),ROWS($A$1:A20))) -> 2020-01-20 | F25: 16 | G25: 16 | H25: 16 | I25: 0 | J25: 0 | K25: 0 | L25: -1 | M25: 0 | T25: =IF($G25>=1,VLOOKUP($A$6,'قائمة الموظفين'!$A$3:$V$500,13,0)/30,0) -> 3.333333333 | U25: =IF($G25>=1,VLOOKUP($A$6,'قائمة الموظفين'!$A$3:$V$500,14,0)/30,0) -> 20 | V25: =IF($G25>=1,VLOOKUP($A$6,'قائمة الموظفين'!$A$3:$V$500,15,0)/30,0) -> 8.333333333 | W25: =IF($G25>=1,VLOOKUP($A$6,'قائمة الموظفين'!$A$3:$V$500,16,0)/30,0) -> 5 | X25: =IF($G25>=1,VLOOKUP($A$6,'قائمة الموظفين'!$A$3:$V$500,17,0)/30,0) -> 3.333333333 | Y25: =IF($G25>=1,VLOOKUP($A$6,'قائمة الموظفين'!$A$3:$V$500,18,0)/30,0) -> 1.666666667 | Z25: =IF($G25>=1,VLOOKUP($A$6,'قائمة الموظفين'!$A$3:$V$500,19,0)/30,0) -> 1.666666667
B26: 2020-01-21 | C26: =IF(MONTH(DATE($A$1,VLOOKUP($J$1,الرئيسية!$Z$4:$AA$15,2,0),ROWS($A$1:A21)))>VLOOKUP($J$1,الرئيسية!$Z$4:$AA$15,2,0),"",DATE($A$1,VLOOKUP($J$1,الرئيسية!$Z$4:$AA$15,2,0),ROWS($A$1:A21))) -> 2020-01-21 | F26: 17 | G26: 17 | H26: 17 | I26: 0 | J26: 0 | K26: 0 | L26: 0 | M26: 0 | T26: =IF($G26>=1,VLOOKUP($A$6,'قائمة الموظفين'!$A$3:$V$500,13,0)/30,0) -> 3.333333333 | U26: =IF($G26>=1,VLOOKUP($A$6,'قائمة الموظفين'!$A$3:$V$500,14,0)/30,0) -> 20 | V26: =IF($G26>=1,VLOOKUP($A$6,'قائمة الموظفين'!$A$3:$V$500,15,0)/30,0) -> 8.333333333 | W26: =IF($G26>=1,VLOOKUP($A$6,'قائمة الموظفين'!$A$3:$V$500,16,0)/30,0) -> 5 | X26: =IF($G26>=1,VLOOKUP($A$6,'قائمة الموظفين'!$A$3:$V$500,17,0)/30,0) -> 3.333333333 | Y26: =IF($G26>=1,VLOOKUP($A$6,'قائمة الموظفين'!$A$3:$V$500,18,0)/30,0) -> 1.666666667 | Z26: =IF($G26>=1,VLOOKUP($A$6,'قائمة الموظفين'!$A$3:$V$500,19,0)/30,0) -> 1.666666667
B27: 2020-01-22 | C27: =IF(MONTH(DATE($A$1,VLOOKUP($J$1,الرئيسية!$Z$4:$AA$15,2,0),ROWS($A$1:A22)))>VLOOKUP($J$1,الرئيسية!$Z$4:$AA$15,2,0),"",DATE($A$1,VLOOKUP($J$1,الرئيسية!$Z$4:$AA$15,2,0),ROWS($A$1:A22))) -> 2020-01-22 | F27: 15 | G27: 15 | H27: 15 | I27: 0 | J27: 0 | K27: 0 | L27: -2 | M27: 0 | T27: =IF($G27>=1,VLOOKUP($A$6,'قائمة الموظفين'!$A$3:$V$500,13,0)/30,0) -> 3.333333333 | U27: =IF($G27>=1,VLOOKUP($A$6,'قائمة الموظفين'!$A$3:$V$500,14,0)/30,0) -> 20 | V27: =IF($G27>=1,VLOOKUP($A$6,'قائمة الموظفين'!$A$3:$V$500,15,0)/30,0) -> 8.333333333 | W27: =IF($G27>=1,VLOOKUP($A$6,'قائمة الموظفين'!$A$3:$V$500,16,0)/30,0) -> 5 | X27: =IF($G27>=1,VLOOKUP($A$6,'قائمة الموظفين'!$A$3:$V$500,17,0)/30,0) -> 3.333333333 | Y27: =IF($G27>=1,VLOOKUP($A$6,'قائمة الموظفين'!$A$3:$V$500,18,0)/30,0) -> 1.666666667 | Z27: =IF($G27>=1,VLOOKUP($A$6,'قائمة الموظفين'!$A$3:$V$500,19,0)/30,0) -> 1.666666667
B28: 2020-01-23 | C28: =IF(MONTH(DATE($A$1,VLOOKUP($J$1,الرئيسية!$Z$4:$AA$15,2,0),ROWS($A$1:A23)))>VLOOKUP($J$1,الرئيسية!$Z$4:$AA$15,2,0),"",DATE($A$1,VLOOKUP($J$1,الرئيسية!$Z$4:$AA$15,2,0),ROWS($A$1:A23))) -> 2020-01-23 | F28: 16 | G28: 16 | H28: 16 | I28: 0 | J28: 0 | K28: 0 | L28: -1 | M28: 0 | T28: =IF($G28>=1,VLOOKUP($A$6,'قائمة الموظفين'!$A$3:$V$500,13,0)/30,0) -> 3.333333333 | U28: =IF($G28>=1,VLOOKUP($A$6,'قائمة الموظفين'!$A$3:$V$500,14,0)/30,0) -> 20 | V28: =IF($G28>=1,VLOOKUP($A$6,'قائمة الموظفين'!$A$3:$V$500,15,0)/30,0) -> 8.333333333 | W28: =IF($G28>=1,VLOOKUP($A$6,'قائمة الموظفين'!$A$3:$V$500,16,0)/30,0) -> 5 | X28: =IF($G28>=1,VLOOKUP($A$6,'قائمة الموظفين'!$A$3:$V$500,17,0)/30,0) -> 3.333333333 | Y28: =IF($G28>=1,VLOOKUP($A$6,'قائمة الموظفين'!$A$3:$V$500,18,0)/30,0) -> 1.666666667 | Z28: =IF($G28>=1,VLOOKUP($A$6,'قائمة الموظفين'!$A$3:$V$500,19,0)/30,0) -> 1.666666667
B29: 2020-01-24 | C29: =IF(MONTH(DATE($A$1,VLOOKUP($J$1,الرئيسية!$Z$4:$AA$15,2,0),ROWS($A$1:A24)))>VLOOKUP($J$1,الرئيسية!$Z$4:$AA$15,2,0),"",DATE($A$1,VLOOKUP($J$1,الرئيسية!$Z$4:$AA$15,2,0),ROWS($A$1:A24))) -> 2020-01-24 | F29: 18 | G29: 18 | H29: 18 | I29: 1 | J29: 0 | K29: 0 | L29: 0 | M29: 1 | T29: =IF($G29>=1,VLOOKUP($A$6,'قائمة الموظفين'!$A$3:$V$500,13,0)/30,0) -> 3.333333333 | U29: =IF($G29>=1,VLOOKUP($A$6,'قائمة الموظفين'!$A$3:$V$500,14,0)/30,0) -> 20 | V29: =IF($G29>=1,VLOOKUP($A$6,'قائمة الموظفين'!$A$3:$V$500,15,0)/30,0) -> 8.333333333 | W29: =IF($G29>=1,VLOOKUP($A$6,'قائمة الموظفين'!$A$3:$V$500,16,0)/30,0) -> 5 | X29: =IF($G29>=1,VLOOKUP($A$6,'قائمة الموظفين'!$A$3:$V$500,17,0)/30,0) -> 3.333333333 | Y29: =IF($G29>=1,VLOOKUP($A$6,'قائمة الموظفين'!$A$3:$V$500,18,0)/30,0) -> 1.666666667 | Z29: =IF($G29>=1,VLOOKUP($A$6,'قائمة الموظفين'!$A$3:$V$500,19,0)/30,0) -> 1.666666667
B30: 2020-01-25 | C30: =IF(MONTH(DATE($A$1,VLOOKUP($J$1,الرئيسية!$Z$4:$AA$15,2,0),ROWS($A$1:A25)))>VLOOKUP($J$1,الرئيسية!$Z$4:$AA$15,2,0),"",DATE($A$1,VLOOKUP($J$1,الرئيسية!$Z$4:$AA$15,2,0),ROWS($A$1:A25))) -> 2020-01-25 | F30: 17 | G30: 17 | H30: 17 | I30: 0 | J30: 0 | K30: 0 | L30: 0 | M30: 0 | T30: =IF($G30>=1,VLOOKUP($A$6,'قائمة الموظفين'!$A$3:$V$500,13,0)/30,0) -> 3.333333333 | U30: =IF($G30>=1,VLOOKUP($A$6,'قائمة الموظفين'!$A$3:$V$500,14,0)/30,0) -> 20 | V30: =IF($G30>=1,VLOOKUP($A$6,'قائمة الموظفين'!$A$3:$V$500,15,0)/30,0) -> 8.333333333 | W30: =IF($G30>=1,VLOOKUP($A$6,'قائمة الموظفين'!$A$3:$V$500,16,0)/30,0) -> 5 | X30: =IF($G30>=1,VLOOKUP($A$6,'قائمة الموظفين'!$A$3:$V$500,17,0)/30,0) -> 3.333333333 | Y30: =IF($G30>=1,VLOOKUP($A$6,'قائمة الموظفين'!$A$3:$V$500,18,0)/30,0) -> 1.666666667 | Z30: =IF($G30>=1,VLOOKUP($A$6,'قائمة الموظفين'!$A$3:$V$500,19,0)/30,0) -> 1.666666667
B31: 2020-01-26 | C31: =IF(MONTH(DATE($A$1,VLOOKUP($J$1,الرئيسية!$Z$4:$AA$15,2,0),ROWS($A$1:A26)))>VLOOKUP($J$1,الرئيسية!$Z$4:$AA$15,2,0),"",DATE($A$1,VLOOKUP($J$1,الرئيسية!$Z$4:$AA$15,2,0),ROWS($A$1:A26))) -> 2020-01-26 | F31: 17 | G31: 17 | H31: 17 | I31: 0 | J31: 0 | K31: 0 | L31: 0 | M31: 0 | T31: =IF($G31>=1,VLOOKUP($A$6,'قائمة الموظفين'!$A$3:$V$500,13,0)/30,0) -> 3.333333333 | U31: =IF($G31>=1,VLOOKUP($A$6,'قائمة الموظفين'!$A$3:$V$500,14,0)/30,0) -> 20 | V31: =IF($G31>=1,VLOOKUP($A$6,'قائمة الموظفين'!$A$3:$V$500,15,0)/30,0) -> 8.333333333 | W31: =IF($G31>=1,VLOOKUP($A$6,'قائمة الموظفين'!$A$3:$V$500,16,0)/30,0) -> 5 | X31: =IF($G31>=1,VLOOKUP($A$6,'قائمة الموظفين'!$A$3:$V$500,17,0)/30,0) -> 3.333333333 | Y31: =IF($G31>=1,VLOOKUP($A$6,'قائمة الموظفين'!$A$3:$V$500,18,0)/30,0) -> 1.666666667 | Z31: =IF($G31>=1,VLOOKUP($A$6,'قائمة الموظفين'!$A$3:$V$500,19,0)/30,0) -> 1.666666667
B32: 2020-01-27 | C32: =IF(MONTH(DATE($A$1,VLOOKUP($J$1,الرئيسية!$Z$4:$AA$15,2,0),ROWS($A$1:A27)))>VLOOKUP($J$1,الرئيسية!$Z$4:$AA$15,2,0),"",DATE($A$1,VLOOKUP($J$1,الرئيسية!$Z$4:$AA$15,2,0),ROWS($A$1:A27))) -> 2020-01-27 | F32: 16 | G32: 16 | H32: 16 | I32: 0 | J32: 0 | K32: 0 | L32: -1 | M32: 0 | T32: =IF($G32>=1,VLOOKUP($A$6,'قائمة الموظفين'!$A$3:$V$500,13,0)/30,0) -> 3.333333333 | U32: =IF($G32>=1,VLOOKUP($A$6,'قائمة الموظفين'!$A$3:$V$500,14,0)/30,0) -> 20 | V32: =IF($G32>=1,VLOOKUP($A$6,'قائمة الموظفين'!$A$3:$V$500,15,0)/30,0) -> 8.333333333 | W32: =IF($G32>=1,VLOOKUP($A$6,'قائمة الموظفين'!$A$3:$V$500,16,0)/30,0) -> 5 | X32: =IF($G32>=1,VLOOKUP($A$6,'قائمة الموظفين'!$A$3:$V$500,17,0)/30,0) -> 3.333333333 | Y32: =IF($G32>=1,VLOOKUP($A$6,'قائمة الموظفين'!$A$3:$V$500,18,0)/30,0) -> 1.666666667 | Z32: =IF($G32>=1,VLOOKUP($A$6,'قائمة الموظفين'!$A$3:$V$500,19,0)/30,0) -> 1.666666667
B33: 2020-01-28 | C33: =IF(MONTH(DATE($A$1,VLOOKUP($J$1,الرئيسية!$Z$4:$AA$15,2,0),ROWS($A$1:A28)))>VLOOKUP($J$1,الرئيسية!$Z$4:$AA$15,2,0),"",DATE($A$1,VLOOKUP($J$1,الرئيسية!$Z$4:$AA$15,2,0),ROWS($A$1:A28))) -> 2020-01-28 | F33: 19 | G33: 19 | H33: 19 | I33: 2 | J33: 0 | K33: 0 | L33: 0 | M33: 2 | T33: =IF($G33>=1,VLOOKUP($A$6,'قائمة الموظفين'!$A$3:$V$500,13,0)/30,0) -> 3.333333333 | U33: =IF($G33>=1,VLOOKUP($A$6,'قائمة الموظفين'!$A$3:$V$500,14,0)/30,0) -> 20 | V33: =IF($G33>=1,VLOOKUP($A$6,'قائمة الموظفين'!$A$3:$V$500,15,0)/30,0) -> 8.333333333 | W33: =IF($G33>=1,VLOOKUP($A$6,'قائمة الموظفين'!$A$3:$V$500,16,0)/30,0) -> 5 | X33: =IF($G33>=1,VLOOKUP($A$6,'قائمة الموظفين'!$A$3:$V$500,17,0)/30,0) -> 3.333333333 | Y33: =IF($G33>=1,VLOOKUP($A$6,'قائمة الموظفين'!$A$3:$V$500,18,0)/30,0) -> 1.666666667 | Z33: =IF($G33>=1,VLOOKUP($A$6,'قائمة الموظفين'!$A$3:$V$500,19,0)/30,0) -> 1.666666667
B34: 2020-01-29 | C34: =IF(MONTH(DATE($A$1,VLOOKUP($J$1,الرئيسية!$Z$4:$AA$15,2,0),ROWS($A$1:A29)))>VLOOKUP($J$1,الرئيسية!$Z$4:$AA$15,2,0),"",DATE($A$1,VLOOKUP($J$1,الرئيسية!$Z$4:$AA$15,2,0),ROWS($A$1:A29))) -> 2020-01-29 | F34: 18 | G34: 18 | H34: 18 | I34: 1 | J34: 0 | K34: 0 | L34: 0 | M34: 1 | T34: =IF($G34>=1,VLOOKUP($A$6,'قائمة الموظفين'!$A$3:$V$500,13,0)/30,0) -> 3.333333333 | U34: =IF($G34>=1,VLOOKUP($A$6,'قائمة الموظفين'!$A$3:$V$500,14,0)/30,0) -> 20 | V34: =IF($G34>=1,VLOOKUP($A$6,'قائمة الموظفين'!$A$3:$V$500,15,0)/30,0) -> 8.333333333 | W34: =IF($G34>=1,VLOOKUP($A$6,'قائمة الموظفين'!$A$3:$V$500,16,0)/30,0) -> 5 | X34: =IF($G34>=1,VLOOKUP($A$6,'قائمة الموظفين'!$A$3:$V$500,17,0)/30,0) -> 3.333333333 | Y34: =IF($G34>=1,VLOOKUP($A$6,'قائمة الموظفين'!$A$3:$V$500,18,0)/30,0) -> 1.666666667 | Z34: =IF($G34>=1,VLOOKUP($A$6,'قائمة الموظفين'!$A$3:$V$500,19,0)/30,0) -> 1.666666667
B35: 2020-01-30 | C35: =IF(MONTH(DATE($A$1,VLOOKUP($J$1,الرئيسية!$Z$4:$AA$15,2,0),ROWS($A$1:A30)))>VLOOKUP($J$1,الرئيسية!$Z$4:$AA$15,2,0),"",DATE($A$1,VLOOKUP($J$1,الرئيسية!$Z$4:$AA$15,2,0),ROWS($A$1:A30))) -> 2020-01-30 | F35: 16 | G35: 16 | H35: 16 | I35: 0 | J35: 0 | K35: 0 | L35: -1 | M35: 0 | T35: =IF($G35>=1,VLOOKUP($A$6,'قائمة الموظفين'!$A$3:$V$500,13,0)/30,0) -> 3.333333333 | U35: =IF($G35>=1,VLOOKUP($A$6,'قائمة الموظفين'!$A$3:$V$500,14,0)/30,0) -> 20 | V35: =IF($G35>=1,VLOOKUP($A$6,'قائمة الموظفين'!$A$3:$V$500,15,0)/30,0) -> 8.333333333 | W35: =IF($G35>=1,VLOOKUP($A$6,'قائمة الموظفين'!$A$3:$V$500,16,0)/30,0) -> 5 | X35: =IF($G35>=1,VLOOKUP($A$6,'قائمة الموظفين'!$A$3:$V$500,17,0)/30,0) -> 3.333333333 | Y35: =IF($G35>=1,VLOOKUP($A$6,'قائمة الموظفين'!$A$3:$V$500,18,0)/30,0) -> 1.666666667 | Z35: =IF($G35>=1,VLOOKUP($A$6,'قائمة الموظفين'!$A$3:$V$500,19,0)/30,0) -> 1.666666667
B36: 2020-01-31 | C36: =IF(MONTH(DATE($A$1,VLOOKUP($J$1,الرئيسية!$Z$4:$AA$15,2,0),ROWS($A$1:A31)))>VLOOKUP($J$1,الرئيسية!$Z$4:$AA$15,2,0),"",DATE($A$1,VLOOKUP($J$1,الرئيسية!$Z$4:$AA$15,2,0),ROWS($A$1:A31))) -> 2020-01-31 | F36: 17 | G36: 17 | H36: 17 | I36: 0 | J36: 0 | K36: 0 | L36: 0 | M36: 0 | T36: =IF($G36>=1,VLOOKUP($A$6,'قائمة الموظفين'!$A$3:$V$500,13,0)/30,0) -> 3.333333333 | U36: =IF($G36>=1,VLOOKUP($A$6,'قائمة الموظفين'!$A$3:$V$500,14,0)/30,0) -> 20 | V36: =IF($G36>=1,VLOOKUP($A$6,'قائمة الموظفين'!$A$3:$V$500,15,0)/30,0) -> 8.333333333 | W36: =IF($G36>=1,VLOOKUP($A$6,'قائمة الموظفين'!$A$3:$V$500,16,0)/30,0) -> 5 | X36: =IF($G36>=1,VLOOKUP($A$6,'قائمة الموظفين'!$A$3:$V$500,17,0)/30,0) -> 3.333333333 | Y36: =IF($G36>=1,VLOOKUP($A$6,'قائمة الموظفين'!$A$3:$V$500,18,0)/30,0) -> 1.666666667 | Z36: =IF($G36>=1,VLOOKUP($A$6,'قائمة الموظفين'!$A$3:$V$500,19,0)/30,0) -> 1.666666667
C37: عدد ايام الحضور | E37: =COUNTA(E6:E36) -> 0 | F37: =COUNTA(F6:F36) -> 29 | G37: =SUM(G6:G36) -> 485 | H37: =SUM(H6:H36)-I37 -> 479 | I37: =SUM(I6:I36) -> 6 | J37: 0 | K37: =SUM(K6:K36) -> 0 | L37: -14 | M37: 6 | N37: 0 | O37: =SUM(O6:O36) -> 0 | P37: 0 | Q37: 0 | R37: 0 | S37: 0 | T37: =SUM(T6:T36) -> 96.66666667 | U37: =SUM(U6:U36) -> 580 | V37: 241.6666667 | W37: 145 | X37: 96.66666667 | Y37: 48.33333333 | Z37: 48.33333333 | AA37: 0 | AB37: =SUM(AB6:AB36) -> 0 | AC37: =SUM(AC6:AC36) -> 500 | AD37: =IF(AD6="يخصم",AD4,0) -> 0 | AE37: =IF(AE6="يخصم",AE4,0) -> 0

Sheet الشيت
A1: الكود | B1: الاسم | C1: الوظيفه | D1: الشهر
A2: 100002 | B2: =VLOOKUP(A2,'قائمة الموظفين'!$A$3:$C$1048575,2,0) -> احمد السيد | C2: =VLOOKUP(A2,'قائمة الموظفين'!$A$3:$C$1048575,3,0) -> امين مخزن
A4: عدد ايام العمل
A5: ساعات الاضافى 1
A6: ساعات الاضافى 2
A7: اجازه اعتيادى
A8: اجازه عارضه
A9: غياب باذن
A10: غياب بدون اذن
A11: اذن تاخير
A12: جزاءات
A13: مكافات
A14: قرض
A15: تامين اجتماعى
A16: تامين خاص
A17: اجمالى الاستقطاعات
A18: اجمالى المستحق

Sheet Data
A1: م | B1: الحافز | C1: الوظيفه | D1: الراتب الاساسى | E1: التامينات | F1: الكود | G1: الاسم | H1: الوظيفه
A2: 1 | B2: 3000 | C2: مدير ادارى | D2: 5000 | E2: يخصم
A3: 2 | B3: 2000 | C3: رئيس قسم | D3: 4000 | E3: لا يخصم | F3: 100001 | G3: احمد امام | H3: رئيس قسم
A4: 3 | B4: 1500 | C4: فنى | D4: 3500 | F4: 100002 | G4: احمد السيد | H4: امين مخزن
A5: 4 | B5: 1200 | C5: مساعد فنى | D5: 3000 | F5: 100003 | G5: يسرى موافى | H5: فنى
A6: 5 | B6: 1000 | C6: عامل | D6: 2800 | F6: 100004 | G6: صالح محمد | H6: عامل
A7: 6 | B7: 1500 | C7: امين مخزن | D7: 3400 | F7: 100005 | G7: مراد الشافعى | H7: عامل
A8: 7 | B8: 1100 | C8: مساعد امين مخزن | D8: 3000 | F8: 100006 | G8: محمد على | H8: مدير ادارى
A9: 8 | B9: 4000 | C9: مدير حسابات | D9: 6000 | F9: 100007 | G9: عبد الواحد السيد | H9: عامل
A10: 9 | B10: 2800 | C10: محاسب | D10: 3800 | F10: 100008 | G10: احمد فتحى | H10: مساعد فنى
A11: 10 | B11: 2500 | C11: سائق | D11: 4200 | E11: اذن تاخير | F11: 100009 | G11: احمد منصور | H11: امين مخزن
F12: 100010 | G12: محمد صلاح | H12: مساعد امين مخزن
F13: 100011 | G13: احمد مصطفى | H13: مدير حسابات
F14: 100012 | G14: احمد سعيد | H14: محاسب
F15: 100013 | G15: محمد رمضان | H15: محاسب
F16: 100014 | G16: محمد شعبان | H16: رئيس قسم
F17: 100015 | G17: احمد كرم | H17: مساعد فنى
F18: 100016 | G18: اسامه محمود | H18: مدير حسابات
F19: 100017 | G19: محمد الداخلى | H19: مدير ادارى
F20: 100018 | G20: محمد عبد العزيز | H20: مساعد امين مخزن
F21: 100019 | G21: هانى محمد | H21: محاسب
F22: 100020 | G22: محمد حقار | H22: سائق

Sheet يناير
A1: الكود | B1: اليوم | C1: التــــــــــــاريخ | E1: الحضور | F1: الانصراف | G1: عدد الساعات | H1: الفعلى | I1: عدد الاضافى | J1: التأخير ساعات | K1: عدد التأخيرات | L1: الفاقد | M1: اضافى 1 | N1: اضافى2 | O1: عطلات | P1: اعتيادى 21 | Q1: عارضه 6 | R1: غياب باذن | S1: غياب بدون اذن | T1: بدل اغتراب | U1: بدل مواصلات | V1: بدل وجبه | W1: بدل غلاء معيشه | X1: بدل موبايل | Y1: بدل ملبس | Z1: بدل طبيعة عمل | AA1: مكافات | AB1: جزاء | AC1: قرض | AD1: ت اجتماعى | AE1: ت طبى خاص
A2: الاسم | C2: اجمالى المستحق | F2: الصافى | L2: 0
A3: الوظيفه | C3: اجمالى الاستقطاعات | J3: 0 | K3: 0
A4: الكود | B4: اليوم | C4: التــــــــــــاريخ | D4: اذن تأخير | E4: الحضور | F4: الانصراف | G4: عدد الساعات | H4: الفعلى | I4: عدد الاضافى | J4: التأخير ساعات | K4: عدد التأخيرات | L4: الفاقد | M4: اضافى 1 | N4: اضافى2 | O4: عطلات | P4: اعتيادى 21 | Q4: عارضه 6 | R4: غياب باذن | S4: غياب بدون اذن | T4: بدل اغتراب | U4: بدل مواصلات | V4: بدل وجبه | W4: بدل غلاء معيشه | X4: بدل موبايل | Y4: بدل ملبس | Z4: بدل طبيعة عمل | AA4: مكافات | AB4: جزاء | AC4: قرض | AD4: ت اجتماعى | AE4: ت طبى خاص
B5: 2020-01-01 | C5: 2020-01-01 | G5: 0 | H5: 0 | I5: 0 | J5: 0 | K5: 0 | L5: 0 | M5: 0 | N5: 0 | P5: 1 | T5: 0 | U5: 0 | V5: 0 | W5: 0 | X5: 0 | Y5: 0 | Z5: 0 | AC5: 500 | AD5: لا يخصم | AE5: لا يخصم
B6: 2020-01-02 | C6: 2020-01-02 | G6: 0 | H6: 0 | I6: 0 | J6: 0 | K6: 0 | L6: 0 | M6: 0 | N6: 0 | Q6: 1 | T6: 0 | U6: 0 | V6: 0 | W6: 0 | X6: 0 | Y6: 0 | Z6: 0
B7: 2020-01-03 | C7: 2020-01-03 | F7: 16 | G7: 16 | H7: 16 | I7: 0 | J7: 0 | K7: 0 | L7: -1 | M7: 0 | N7: 0
B8: 2020-01-04 | C8: 2020-01-04 | F8: 16 | G8: 16 | H8: 16 | I8: 0 | J8: 0 | K8: 0 | L8: -1 | M8: 0 | N8: 0
B9: 2020-01-05 | C9: 2020-01-05 | F9: 17 | G9: 17 | H9: 17 | I9: 0 | J9: 0 | K9: 0 | L9: 0 | M9: 0 | N9: 0
B10: 2020-01-06 | C10: 2020-01-06 | F10: 16 | G10: 16 | H10: 16 | I10: 0 | J10: 0 | K10: 0 | L10: -1 | M10: 0 | N10: 0
B11: 2020-01-07 | C11: 2020-01-07 | F11: 16 | G11: 16 | H11: 16 | I11: 0 | J11: 0 | K11: 0 | L11: -1 | M11: 0 | N11: 0
B12: 2020-01-08 | C12: 2020-01-08 | F12: 15 | G12: 15 | H12: 15 | I12: 0 | J12: 0 | K12: 0 | L12: -2 | M12: 0 | N12: 0
B13: 2020-01-09 | C13: 2020-01-09 | F13: 17 | G13: 17 | H13: 17 | I13: 0 | J13: 0 | K13: 0 | L13: 0 | M13: 0 | N13: 0
B14: 2020-01-10 | C14: 2020-01-10 | F14: 16 | G14: 16 | H14: 16 | I14: 0 | J14: 0 | K14: 0 | L14: -1 | M14: 0 | N14: 0
B15: 2020-01-11 | C15: 2020-01-11 | F15: 17 | G15: 17 | H15: 17 | I15: 0 | J15: 0 | K15: 0 | L15: 0 | M15: 0 | N15: 0
B16: 2020-01-12 | C16: 2020-01-12 | F16: 18 | G16: 18 | H16: 18 | I16: 1 | J16: 0 | K16: 0 | L16: 0 | M16: 1 | N16: 0
B17: 2020-01-13 | C17: 2020-01-13 | F17: 18 | G17: 18 | H17: 18 | I17: 1 | J17: 0 | K17: 0 | L17: 0 | M17: 1 | N17: 0
B18: 2020-01-14 | C18: 2020-01-14 | F18: 17 | G18: 17 | H18: 17 | I18: 0 | J18: 0 | K18: 0 | L18: 0 | M18: 0 | N18: 0
B19: 2020-01-15 | C19: 2020-01-15 | F19: 17 | G19: 17 | H19: 17 | I19: 0 | J19: 0 | K19: 0 | L19: 0 | M19: 0 | N19: 0
B20: 2020-01-16 | C20: 2020-01-16 | F20: 17 | G20: 17 | H20: 17 | I20: 0 | J20: 0 | K20: 0 | L20: 0 | M20: 0 | N20: 0
B21: 2020-01-17 | C21: 2020-01-17 | F21: 17 | G21: 17 | H21: 17 | I21: 0 | J21: 0 | K21: 0 | L21: 0 | M21: 0 | N21: 0
B22: 2020-01-18 | C22: 2020-01-18 | F22: 17 | G22: 17 | H22: 17 | I22: 0 | J22: 0 | K22: 0 | L22: 0 | M22: 0 | N22: 0
B23: 2020-01-19 | C23: 2020-01-19 | F23: 16 | G23: 16 | H23: 16 | I23: 0 | J23: 0 | K23: 0 | L23: -1 | M23: 0 | N23: 0
B24: 2020-01-20 | C24: 2020-01-20 | F24: 16 | G24: 16 | H24: 16 | I24: 0 | J24: 0 | K24: 0 | L24: -1 | M24: 0 | N24: 0
B25: 2020-01-21 | C25: 2020-01-21 | F25: 17 | G25: 17 | H25: 17 | I25: 0 | J25: 0 | K25: 0 | L25: 0 | M25: 0 | N25: 0
B26: 2020-01-22 | C26: 2020-01-22 | F26: 15 | G26: 15 | H26: 15 | I26: 0 | J26: 0 | K26: 0 | L26: -2 | M26: 0 | N26: 0
B27: 2020-01-23 | C27: 2020-01-23 | F27: 16 | G27: 16 | H27: 16 | I27: 0 | J27: 0 | K27: 0 | L27: -1 | M27: 0 | N27: 0
B28: 2020-01-24 | C28: 2020-01-24 | F28: 18 | G28: 18 | H28: 18 | I28: 1 | J28: 0 | K28: 0 | L28: 0 | M28: 1 | N28: 0
B29: 2020-01-25 | C29: 2020-01-25 | F29: 17 | G29: 17 | H29: 17 | I29: 0 | J29: 0 | K29: 0 | L29: 0 | M29: 0 | N29: 0
B30: 2020-01-26 | C30: 2020-01-26 | F30: 17 | G30: 17 | H30: 17 | I30: 0 | J30: 0 | K30: 0 | L30: 0 | M30: 0 | N30: 0
B31: 2020-01-27 | C31: 2020-01-27 | F31: 16 | G31: 16 | H31: 16 | I31: 0 | J31: 0 | K31: 0 | L31: -1 | M31: 0 | N31: 0
B32: 2020-01-28 | C32: 2020-01-28 | F32: 19 | G32: 19 | H32: 19 | I32: 2 | J32: 0 | K32: 0 | L32: 0 | M32: 2 | N32: 0
B33: 2020-01-29 | C33: 2020-01-29 | F33: 18 | G33: 18 | H33: 18 | I33: 1 | J33: 0 | K33: 0 | L33: 0 | M33: 1 | N33: 0
B34: 2020-01-30 | C34: 2020-01-30 | F34: 16 | G34: 16 | H34: 16 | I34: 0 | J34: 0 | K34: 0 | L34: -1 | M34: 0 | N34: 0
B35: 2020-01-31 | C35: 2020-01-31 | F35: 17 | G35: 17 | H35: 17 | I35: 0 | J35: 0 | K35: 0 | L35: 0 | M35: 0 | N35: 0
C36: عدد ايام الحضور | E36: 0 | F36: 29 | G36: 485 | H36: 479 | I36: 6 | J36: 0 | K36: 0 | L36: -14 | M36: 6 | N36: 0 | O36: 0 | P36: 1 | Q36: 1 | R36: 0 | S36: 0 | AA36: 0 | AB36: 0 | AC36: 500 | AD36: 0 | AE36: 0

Sheet فبراير
A1: الكود | B1: اليوم | C1: التــــــــــــاريخ | D1: الحضور | E1: الانصراف | F1: عدد الساعات | G1: الفعلى | H1: عدد الاضافى | I1: التأخير ساعات | J1: عدد التأخيرات | K1: الفاقد | L1: اضافى 1 | M1: اضافى2 | N1: عطلات | O1: اعتيادى 21 | P1: عارضه 6 | Q1: غياب باذن | R1: غياب بدون اذن | S1: بدل اغتراب | T1: بدل مواصلات | U1: بدل وجبه | V1: بدل غلاء معيشه | W1: بدل موبايل | X1: بدل ملبس | Y1: بدل طبيعة عمل | Z1: مكافات | AA1: جزاء | AB1: قرض | AC1: ت اجتماعى | AD1: ت طبى خاص
A2: الاسم | B2: احمد امام | C2: اجمالى المستحق | E2: 5679.895833 | F2: الصافى | G2: 5317.395833 | L2: 4.75
A3: الوظيفه | B3: مدير ادارى | C3: اجمالى الاستقطاعات | E3: -362.5 | H3: 3857.8125 | J3: 12.25 | K3: -600 | L3: -262.5 | M3: 168.75 | N3: 0 | O3: 0 | P3: 150 | Q3: 150 | R3: 0 | S3: 0 | T3: 96.66666667 | U3: 580 | V3: 241.6666667 | W3: 145 | X3: 96.66666667 | Y3: 48.33333333 | Z3: 48.33333333 | AA3: 0 | AB3: 0 | AC3: -12500 | AD3: -140 | AE3: -100
A4: الكود | B4: اليوم | C4: التــــــــــــاريخ | D4: اذن تأخير | E4: الحضور | F4: الانصراف | G4: عدد الساعات | H4: الفعلى | I4: عدد الاضافى | J4: التأخير ساعات | K4: عدد التأخيرات | L4: الفاقد | M4: اضافى 1 | N4: اضافى2 | O4: عطلات | P4: اعتيادى 21 | Q4: عارضه 6 | R4: غياب باذن | S4: غياب بدون اذن | T4: بدل اغتراب | U4: بدل مواصلات | V4: بدل وجبه | W4: بدل غلاء معيشه | X4: بدل موبايل | Y4: بدل ملبس | Z4: بدل طبيعة عمل | AA4: مكافات | AB4: جزاء | AC4: قرض | AD4: ت اجتماعى | AE4: ت طبى خاص
A5: 100001 | B5: 2020-02-01 | C5: 2020-02-01 | G5: 0 | H5: 0 | I5: 0 | J5: 0 | K5: 0 | L5: 0 | M5: 0 | N5: 0 | P5: 1 | T5: 0 | U5: 0 | V5: 0 | W5: 0 | X5: 0 | Y5: 0 | Z5: 0 | AC5: 500 | AD5: لا يخصم | AE5: لا يخصم
B6: 2020-02-02 | C6: 2020-02-02 | G6: 0 | H6: 0 | I6: 0 | J6: 0 | K6: 0 | L6: 0 | M6: 0 | N6: 0 | Q6: 1 | T6: 0 | U6: 0 | V6: 0 | W6: 0 | X6: 0 | Y6: 0 | Z6: 0
B7: 2020-02-03 | C7: 2020-02-03 | E7: 9 | F7: 16 | G7: 7 | H7: 7 | I7: 0 | J7: 0 | K7: 0 | L7: -1 | M7: 0 | N7: 0 | T7: 3.333333333 | U7: 20 | V7: 8.333333333 | W7: 5 | X7: 3.333333333 | Y7: 1.666666667 | Z7: 1.666666667
B8: 2020-02-04 | C8: 2020-02-04 | E8: 10 | F8: 16 | G8: 6 | H8: 6 | I8: 0 | J8: 1 | K8: 1 | L8: -1 | M8: 0 | N8: 0 | T8: 3.333333333 | U8: 20 | V8: 8.333333333 | W8: 5 | X8: 3.333333333 | Y8: 1.666666667 | Z8: 1.666666667
B9: 2020-02-05 | C9: 2020-02-05 | E9: 11 | F9: 17 | G9: 6 | H9: 6 | I9: 0 | J9: 2 | K9: 1 | L9: 0 | M9: 0 | N9: 0 | T9: 3.333333333 | U9: 20 | V9: 8.333333333 | W9: 5 | X9: 3.333333333 | Y9: 1.666666667 | Z9: 1.666666667
B10: 2020-02-06 | C10: 2020-02-06 | E10: 11 | F10: 16 | G10: 5 | H10: 5 | I10: 0 | J10: 2 | K10: 1 | L10: -1 | M10: 0 | N10: 0 | T10: 3.333333333 | U10: 20 | V10: 8.333333333 | W10: 5 | X10: 3.333333333 | Y10: 1.666666667 | Z10: 1.666666667
B11: 2020-02-07 | C11: 2020-02-07 | E11: 11 | F11: 16 | G11: 5 | H11: 5 | I11: 0 | J11: 2 | K11: 1 | L11: -1 | M11: 0 | N11: 0 | T11: 3.333333333 | U11: 20 | V11: 8.333333333 | W11: 5 | X11: 3.333333333 | Y11: 1.666666667 | Z11: 1.666666667
B12: 2020-02-08 | C12: 2020-02-08 | E12: 9 | F12: 15 | G12: 6 | H12: 6 | I12: 0 | J12: 0 | K12: 0 | L12: -2 | M12: 0 | N12: 0 | T12: 3.333333333 | U12: 20 | V12: 8.333333333 | W12: 5 | X12: 3.333333333 | Y12: 1.666666667 | Z12: 1.666666667
B13: 2020-02-09 | C13: 2020-02-09 | E13: 9 | F13: 17 | G13: 8 | H13: 8 | I13: 0 | J13: 0 | K13: 0 | L13: 0 | M13: 0 | N13: 0 | T13: 3.333333333 | U13: 20 | V13: 8.333333333 | W13: 5 | X13: 3.333333333 | Y13: 1.666666667 | Z13: 1.666666667
B14: 2020-02-10 | C14: 2020-02-10 | E14: 9 | F14: 16 | G14: 7 | H14: 7 | I14: 0 | J14: 0 | K14: 0 | L14: -1 | M14: 0 | N14: 0 | T14: 3.333333333 | U14: 20 | V14: 8.333333333 | W14: 5 | X14: 3.333333333 | Y14: 1.666666667 | Z14: 1.666666667
B15: 2020-02-11 | C15: 2020-02-11 | E15: 9 | F15: 17 | G15: 8 | H15: 8 | I15: 0 | J15: 0 | K15: 0 | L15: 0 | M15: 0 | N15: 0 | T15: 3.333333333 | U15: 20 | V15: 8.333333333 | W15: 5 | X15: 3.333333333 | Y15: 1.666666667 | Z15: 1.666666667
B16: 2020-02-12 | C16: 2020-02-12 | E16: 9 | F16: 18 | G16: 9 | H16: 9 | I16: 1 | J16: 0 | K16: 0 | L16: 0 | M16: 1 | N16: 0 | T16: 3.333333333 | U16: 20 | V16: 8.333333333 | W16: 5 | X16: 3.333333333 | Y16: 1.666666667 | Z16: 1.666666667
B17: 2020-02-13 | C17: 2020-02-13 | E17: 9 | F17: 18 | G17: 9 | H17: 9 | I17: 1 | J17: 0 | K17: 0 | L17: 0 | M17: 1 | N17: 0 | T17: 3.333333333 | U17: 20 | V17: 8.333333333 | W17: 5 | X17: 3.333333333 | Y17: 1.666666667 | Z17: 1.666666667
B18: 2020-02-14 | C18: 2020-02-14 | E18: 9 | F18: 17 | G18: 8 | H18: 8 | I18: 0 | J18: 0 | K18: 0 | L18: 0 | M18: 0 | N18: 0 | T18: 3.333333333 | U18: 20 | V18: 8.333333333 | W18: 5 | X18: 3.333333333 | Y18: 1.666666667 | Z18: 1.666666667
B19: 2020-02-15 | C19: 2020-02-15 | E19: 9 | F19: 17 | G19: 8 | H19: 8 | I19: 0 | J19: 0 | K19: 0 | L19: 0 | M19: 0 | N19: 0 | T19: 3.333333333 | U19: 20 | V19: 8.333333333 | W19: 5 | X19: 3.333333333 | Y19: 1.666666667 | Z19: 1.666666667
B20: 2020-02-16 | C20: 2020-02-16 | E20: 9 | F20: 17 | G20: 8 | H20: 8 | I20: 0 | J20: 0 | K20: 0 | L20: 0 | M20: 0 | N20: 0 | T20: 3.333333333 | U20: 20 | V20: 8.333333333 | W20: 5 | X20: 3.333333333 | Y20: 1.666666667 | Z20: 1.666666667
B21: 2020-02-17 | C21: 2020-02-17 | E21: 9 | F21: 17 | G21: 8 | H21: 8 | I21: 0 | J21: 0 | K21: 0 | L21: 0 | M21: 0 | N21: 0 | T21: 3.333333333 | U21: 20 | V21: 8.333333333 | W21: 5 | X21: 3.333333333 | Y21: 1.666666667 | Z21: 1.666666667
B22: 2020-02-18 | C22: 2020-02-18 | E22: 9 | F22: 17 | G22: 8 | H22: 8 | I22: 0 | J22: 0 | K22: 0 | L22: 0 | M22: 0 | N22: 0 | T22: 3.333333333 | U22: 20 | V22: 8.333333333 | W22: 5 | X22: 3.333333333 | Y22: 1.666666667 | Z22: 1.666666667
B23: 2020-02-19 | C23: 2020-02-19 | E23: 9 | F23: 16 | G23: 7 | H23: 7 | I23: 0 | J23: 0 | K23: 0 | L23: -1 | M23: 0 | N23: 0 | T23: 3.333333333 | U23: 20 | V23: 8.333333333 | W23: 5 | X23: 3.333333333 | Y23: 1.666666667 | Z23: 1.666666667
B24: 2020-02-20 | C24: 2020-02-20 | E24: 9 | F24: 16 | G24: 7 | H24: 7 | I24: 0 | J24: 0 | K24: 0 | L24: -1 | M24: 0 | N24: 0 | T24: 3.333333333 | U24: 20 | V24: 8.333333333 | W24: 5 | X24: 3.333333333 | Y24: 1.666666667 | Z24: 1.666666667
B25: 2020-02-21 | C25: 2020-02-21 | E25: 9 | F25: 17 | G25: 8 | H25: 8 | I25: 0 | J25: 0 | K25: 0 | L25: 0 | M25: 0 | N25: 0 | T25: 3.333333333 | U25: 20 | V25: 8.333333333 | W25: 5 | X25: 3.333333333 | Y25: 1.666666667 | Z25: 1.666666667
B26: 2020-02-22 | C26: 2020-02-22 | E26: 9 | F26: 15 | G26: 6 | H26: 6 | I26: 0 | J26: 0 | K26: 0 | L26: -2 | M26: 0 | N26: 0 | T26: 3.333333333 | U26: 20 | V26: 8.333333333 | W26: 5 | X26: 3.333333333 | Y26: 1.666666667 | Z26: 1.666666667
B27: 2020-02-23 | C27: 2020-02-23 | E27: 9 | F27: 16 | G27: 7 | H27: 7 | I27: 0 | J27: 0 | K27: 0 | L27: -1 | M27: 0 | N27: 0 | T27: 3.333333333 | U27: 20 | V27: 8.333333333 | W27: 5 | X27: 3.333333333 | Y27: 1.666666667 | Z27: 1.666666667
B28: 2020-02-24 | C28: 2020-02-24 | E28: 9 | F28: 18 | G28: 9 | H28: 9 | I28: 1 | J28: 0 | K28: 0 | L28: 0 | M28: 1 | N28: 0 | T28: 3.333333333 | U28: 20 | V28: 8.333333333 | W28: 5 | X28: 3.333333333 | Y28: 1.666666667 | Z28: 1.666666667
B29: 2020-02-25 | C29: 2020-02-25 | E29: 9 | F29: 17 | G29: 8 | H29: 8 | I29: 0 | J29: 0 | K29: 0 | L29: 0 | M29: 0 | N29: 0 | T29: 3.333333333 | U29: 20 | V29: 8.333333333 | W29: 5 | X29: 3.333333333 | Y29: 1.666666667 | Z29: 1.666666667
B30: 2020-02-26 | C30: 2020-02-26 | E30: 9 | F30: 17 | G30: 8 | H30: 8 | I30: 0 | J30: 0 | K30: 0 | L30: 0 | M30: 0 | N30: 0 | T30: 3.333333333 | U30: 20 | V30: 8.333333333 | W30: 5 | X30: 3.333333333 | Y30: 1.666666667 | Z30: 1.666666667
B31: 2020-02-27 | C31: 2020-02-27 | E31: 9 | F31: 16 | G31: 7 | H31: 7 | I31: 0 | J31: 0 | K31: 0 | L31: -1 | M31: 0 | N31: 0 | T31: 3.333333333 | U31: 20 | V31: 8.333333333 | W31: 5 | X31: 3.333333333 | Y31: 1.666666667 | Z31: 1.666666667
B32: 2020-02-28 | C32: 2020-02-28 | E32: 10 | F32: 19 | G32: 9 | H32: 9 | I32: 2 | J32: 1 | K32: 1 | L32: 0 | M32: 2 | N32: 0 | T32: 3.333333333 | U32: 20 | V32: 8.333333333 | W32: 5 | X32: 3.333333333 | Y32: 1.666666667 | Z32: 1.666666667
B33: 2020-02-29 | C33: 2020-02-29 | E33: 10 | F33: 18 | G33: 8 | H33: 8 | I33: 1 | J33: 1 | K33: 1 | L33: 0 | M33: 1 | N33: 0 | T33: 3.333333333 | U33: 20 | V33: 8.333333333 | W33: 5 | X33: 3.333333333 | Y33: 1.666666667 | Z33: 1.666666667
D34: اذن تاخير | E34: 10.5 | F34: 16 | G34: 5.5 | H34: 5.5 | I34: 0 | J34: 1.5 | K34: 0 | L34: -1 | M34: 0 | N34: 0 | T34: 3.333333333 | U34: 20 | V34: 8.333333333 | W34: 5 | X34: 3.333333333 | Y34: 1.666666667 | Z34: 1.666666667
D35: اذن تاخير | E35: 10.75 | F35: 17 | G35: 6.25 | H35: 6.25 | I35: 0 | J35: 1.75 | K35: 0 | L35: 0 | M35: 0 | N35: 0 | T35: 3.333333333 | U35: 20 | V35: 8.333333333 | W35: 5 | X35: 3.333333333 | Y35: 1.666666667 | Z35: 1.666666667
C36: عدد ايام الحضور | E36: 29 | F36: 29 | G36: 211.75 | H36: 205.75 | I36: 6 | J36: 12.25 | K36: 6 | L36: -14 | M36: 6 | N36: 0 | O36: 0 | P36: 1 | Q36: 1 | R36: 0 | S36: 0 | T36: 96.66666667 | U36: 580 | V36: 241.6666667 | W36: 145 | X36: 96.66666667 | Y36: 48.33333333 | Z36: 48.33333333 | AA36: 0 | AB36: 0 | AC36: 500 | AD36: 0 | AE36: 0

Sheet مارس
A1: الكود | B1: اليوم | C1: التــــــــــــاريخ | D1: الحضور | E1: الانصراف | F1: عدد الساعات | G1: الفعلى | H1: عدد الاضافى | I1: التأخير ساعات | J1: عدد التأخيرات | K1: الفاقد | L1: اضافى 1 | M1: اضافى2 | N1: عطلات | O1: اعتيادى 21 | P1: عارضه 6 | Q1: غياب باذن | R1: غياب بدون اذن | S1: بدل اغتراب | T1: بدل مواصلات | U1: بدل وجبه | V1: بدل غلاء معيشه | W1: بدل موبايل | X1: بدل ملبس | Y1: بدل طبيعة عمل | Z1: مكافات | AA1: جزاء | AB1: قرض | AC1: ت اجتماعى | AD1: ت طبى خاص

Sheet ابريل
A1: الكود | B1: اليوم | C1: التــــــــــــاريخ | D1: الحضور | E1: الانصراف | F1: عدد الساعات | G1: الفعلى | H1: عدد الاضافى | I1: التأخير ساعات | J1: عدد التأخيرات | K1: الفاقد | L1: اضافى 1 | M1: اضافى2 | N1: عطلات | O1: اعتيادى 21 | P1: عارضه 6 | Q1: غياب باذن | R1: غياب بدون اذن | S1: بدل اغتراب | T1: بدل مواصلات | U1: بدل وجبه | V1: بدل غلاء معيشه | W1: بدل موبايل | X1: بدل ملبس | Y1: بدل طبيعة عمل | Z1: مكافات | AA1: جزاء | AB1: قرض | AC1: ت اجتماعى | AD1: ت طبى خاص

Sheet مايو
A1: الكود | B1: اليوم | C1: التــــــــــــاريخ | D1: الحضور | E1: الانصراف | F1: عدد الساعات | G1: الفعلى | H1: عدد الاضافى | I1: التأخير ساعات | J1: عدد التأخيرات | K1: الفاقد | L1: اضافى 1 | M1: اضافى2 | N1: عطلات | O1: اعتيادى 21 | P1: عارضه 6 | Q1: غياب باذن | R1: غياب بدون اذن | S1: بدل اغتراب | T1: بدل مواصلات | U1: بدل وجبه | V1: بدل غلاء معيشه | W1: بدل موبايل | X1: بدل ملبس | Y1: بدل طبيعة عمل | Z1: مكافات | AA1: جزاء | AB1: قرض | AC1: ت اجتماعى | AD1: ت طبى خاص

Sheet يونيو
A1: الكود | B1: اليوم | C1: التــــــــــــاريخ | D1: الحضور | E1: الانصراف | F1: عدد الساعات | G1: الفعلى | H1: عدد الاضافى | I1: التأخير ساعات | J1: عدد التأخيرات | K1: الفاقد | L1: اضافى 1 | M1: اضافى2 | N1: عطلات | O1: اعتيادى 21 | P1: عارضه 6 | Q1: غياب باذن | R1: غياب بدون اذن | S1: بدل اغتراب | T1: بدل مواصلات | U1: بدل وجبه | V1: بدل غلاء معيشه | W1: بدل موبايل | X1: بدل ملبس | Y1: بدل طبيعة عمل | Z1: مكافات | AA1: جزاء | AB1: قرض | AC1: ت اجتماعى | AD1: ت طبى خاص

Sheet يوليو
A1: الكود | B1: اليوم | C1: التــــــــــــاريخ | D1: الحضور | E1: الانصراف | F1: عدد الساعات | G1: الفعلى | H1: عدد الاضافى | I1: التأخير ساعات | J1: عدد التأخيرات | K1: الفاقد | L1: اضافى 1 | M1: اضافى2 | N1: عطلات | O1: اعتيادى 21 | P1: عارضه 6 | Q1: غياب باذن | R1: غياب بدون اذن | S1: بدل اغتراب | T1: بدل مواصلات | U1: بدل وجبه | V1: بدل غلاء معيشه | W1: بدل موبايل | X1: بدل ملبس | Y1: بدل طبيعة عمل | Z1: مكافات | AA1: جزاء | AB1: قرض | AC1: ت اجتماعى | AD1: ت طبى خاص
Z33: 0 | AA33: 0 | AB33: 0

Sheet اغسطس
A1: الكود | B1: اليوم | C1: التــــــــــــاريخ | D1: الحضور | E1: الانصراف | F1: عدد الساعات | G1: الفعلى | H1: عدد الاضافى | I1: التأخير ساعات | J1: عدد التأخيرات | K1: الفاقد | L1: اضافى 1 | M1: اضافى2 | N1: عطلات | O1: اعتيادى 21 | P1: عارضه 6 | Q1: غياب باذن | R1: غياب بدون اذن | S1: بدل اغتراب | T1: بدل مواصلات | U1: بدل وجبه | V1: بدل غلاء معيشه | W1: بدل موبايل | X1: بدل ملبس | Y1: بدل طبيعة عمل | Z1: مكافات | AA1: جزاء | AB1: قرض | AC1: ت اجتماعى | AD1: ت طبى خاص

Sheet سبتمبر
A1: الكود | B1: اليوم | C1: التــــــــــــاريخ | D1: الحضور | E1: الانصراف | F1: عدد الساعات | G1: الفعلى | H1: عدد الاضافى | I1: التأخير ساعات | J1: عدد التأخيرات | K1: الفاقد | L1: اضافى 1 | M1: اضافى2 | N1: عطلات | O1: اعتيادى 21 | P1: عارضه 6 | Q1: غياب باذن | R1: غياب بدون اذن | S1: بدل اغتراب | T1: بدل مواصلات | U1: بدل وجبه | V1: بدل غلاء معيشه | W1: بدل موبايل | X1: بدل ملبس | Y1: بدل طبيعة عمل | Z1: مكافات | AA1: جزاء | AB1: قرض | AC1: ت اجتماعى | AD1: ت طبى خاص

Sheet اكتوبر
A1: الكود | B1: اليوم | C1: التــــــــــــاريخ | D1: الحضور | E1: الانصراف | F1: عدد الساعات | G1: الفعلى | H1: عدد الاضافى | I1: التأخير ساعات | J1: عدد التأخيرات | K1: الفاقد | L1: اضافى 1 | M1: اضافى2 | N1: عطلات | O1: اعتيادى 21 | P1: عارضه 6 | Q1: غياب باذن | R1: غياب بدون اذن | S1: بدل اغتراب | T1: بدل مواصلات | U1: بدل وجبه | V1: بدل غلاء معيشه | W1: بدل موبايل | X1: بدل ملبس | Y1: بدل طبيعة عمل | Z1: مكافات | AA1: جزاء | AB1: قرض | AC1: ت اجتماعى | AD1: ت طبى خاص

Sheet نوفمبر
A1: الكود | B1: اليوم | C1: التــــــــــــاريخ | D1: الحضور | E1: الانصراف | F1: عدد الساعات | G1: الفعلى | H1: عدد الاضافى | I1: التأخير ساعات | J1: عدد التأخيرات | K1: الفاقد | L1: اضافى 1 | M1: اضافى2 | N1: عطلات | O1: اعتيادى 21 | P1: عارضه 6 | Q1: غياب باذن | R1: غياب بدون اذن | S1: بدل اغتراب | T1: بدل مواصلات | U1: بدل وجبه | V1: بدل غلاء معيشه | W1: بدل موبايل | X1: بدل ملبس | Y1: بدل طبيعة عمل | Z1: مكافات | AA1: جزاء | AB1: قرض | AC1: ت اجتماعى | AD1: ت طبى خاص

Sheet ديسمبر
A1: الكود | B1: اليوم | C1: التــــــــــــاريخ | D1: الحضور | E1: الانصراف | F1: عدد الساعات | G1: الفعلى | H1: عدد الاضافى | I1: التأخير ساعات | J1: عدد التأخيرات | K1: الفاقد | L1: اضافى 1 | M1: اضافى2 | N1: عطلات | O1: اعتيادى 21 | P1: عارضه 6 | Q1: غياب باذن | R1: غياب بدون اذن | S1: بدل اغتراب | T1: بدل مواصلات | U1: بدل وجبه | V1: بدل غلاء معيشه | W1: بدل موبايل | X1: بدل ملبس | Y1: بدل طبيعة عمل | Z1: مكافات | AA1: جزاء | AB1: قرض | AC1: ت اجتماعى | AD1: ت طبى خاص
